Cogmind - Beta 17.1 @@@ ROGUE MODE // 2026.09.11 @ 05:39:51 Player: 4R-ZE3 Result: Self-destructed Performance ------------- Evolutions (2) 1000 Regions Visited (3) 600 Robots Destroyed (28) 140 Value Destroyed (968) 968 Prototype IDs (0) 0 Alien Tech Used (0) 0 Bonus (0) 0 TOTAL SCORE: 2708 Bonus ------- None Cogmind --------- Core Integrity 126/550 Matter 300/300 Energy 125/125 System Corruption 0% Temperature Cool (0) Movement Rolling (145) Ox3 Location -8/Materials Parts ------- > --- POWER (1) -------- Light Ion Engine > --- PROPULSION (4) --- Aluminum Leg Compact Wheel > --- UTILITY (4) ------ Improved Heat Sink High-capacity Storage Unit Propulsion Shielding Improved Light Armor Plating > --- WEAPON (2) ------- Katana Katana > --- INVENTORY (20) --- Light Treads Signal Interpreter Heavy Riot Gun Small Laser Particle Gun Field Laser Battle Cannon Grenade Launcher Mining Claw Katana Peak State ------------ > --- POWER ------------ Light Ion Engine > --- PROPULSION ------- Aluminum Leg Compact Wheel > --- UTILITY ---------- Improved Heat Sink High-capacity Storage Unit Propulsion Shielding Improved Light Armor Plating > --- WEAPON ----------- Katana Katana > --- INVENTORY -------- Light Treads Signal Interpreter Heavy Riot Gun Small Laser Particle Gun Field Laser Battle Cannon Grenade Launcher Mining Claw Katana [Rating: 18] Favorites ----------- Power Ion Engine Engine Ion Engine Propulsion Wheel Treads Light Treads Leg Aluminum Leg Wheel Wheel Utility High-capacity Storage Unit Device Improved Heat Sink Storage High-capacity Storage Unit Protection Propulsion Shielding Weapon Light Cannon Energy Gun EM Pulse Gun Ballistic Gun Assault Rifle Ballistic Cannon Light Cannon Slashing Weapon Katana Build | -11 -10 -10 -8 ------- Run | Yrd Mat Sub Mat Slots Evolved 4 | . . . 4 Power . | . . . . Propulsion 2 | . . . 2 Utility 2 | . . . 2 Weapon . | . . . . Parts Attached 25 | 7 5 . 13 Power 3 | 2 . . 1 Engine 3 | 2 . . 1 Core . | . . . . Reactor . | . . . . Propulsion 7 | 2 2 . 3 Treads 2 | 2 . . . Leg 2 | . . . 2 Wheel 3 | . 2 . 1 Hover . | . . . . Flight . | . . . . Utility 6 | 1 1 . 4 Device 1 | . . . 1 Storage 2 | 1 1 . . Processor . | . . . . Hackware . | . . . . Protection 3 | . . . 3 Artifact . | . . . . Weapon 9 | 2 2 . 5 Energy Gun 1 | 1 . . . Energy Cannon . | . . . . Ballistic Gun 1 | 1 . . . Ballistic Cannon 4 | . 2 . 2 Launcher . | . . . . Special Weapon . | . . . . Impact Weapon . | . . . . Slashing Weapon 3 | . . . 3 Piercing Weapon . | . . . . Special Melee Weapon . | . . . . Unidentified Prototypes . | . . . . Parts Lost 11 | . 1 . 10 Power 2 | . . . 2 Propulsion 4 | . 1 . 3 Utility 1 | . . . 1 Weapon 4 | . . . 4 Highest Loss Streak 4 | . 1 . 4 To Critical Strikes . | . . . . Average Backups 7 | 2 6 10 9 Power . | . 1 1 . Propulsion . | . . . . Utility 1 | . . 2 1 Weapon 5 | . 3 6 7 Tool/Special . | . . . . Unused Backups 9 | . . . 9 Power . | . . . . Propulsion 1 | . . . 1 Utility 1 | . . . 1 Weapon 7 | . . . 7 Tool/Special . | . . . . Average Slot Usage (%) 74 | . 82 85 57 Engine 11 | . 14 14 6 Treads 4 | . 10 . . Wheel 16 | . 16 28 9 Storage 12 | . 14 14 9 Protection 4 | . . . 14 Energy Gun 1 | . 2 . . Ballistic Gun 1 | . 2 . . Ballistic Cannon 18 | . 21 28 8 Slashing Weapon 2 | . . . 8 Peak Build Rating 18 | 6 6 7 18 Average Rating 7 | 4 5 6 11 On Entrance 4 | . 6 6 7 Avg Prop Armor Cover (%) 10 | . 11 . 8 Naked Turns . | . . . . Heaviest Build 56 | 14 51 51 56 Greatest Support 40 | 40 40 20 20 Greatest Overweight (x) 17 | . 5 2 17 Average Overweight (x) 2 | . 2 2 3 Largest Inventory Capacity 20 | 8 20 20 20 Average Capacity 17 | 6 16 20 20 Most Carried 12 | 4 8 11 12 Average Carried 7 | 2 6 10 9 Final Capacity 20 | 8 20 20 20 Final Carried 11 | 4 8 11 10 Class Distribution -------------------- 100% | Mutant Dominant Class ---------------- Mutant | -10/Materials Mutant | -10/Subcaves Mutant | -8/Materials Resources | -11 -10 -10 -8 ----------- Run | Yrd Mat Sub Mat Matter Collected 909 | 180 357 75 297 Remotely . | . . . . Salvage Created 972 | . 322 51 599 Parts 49 | . 22 3 24 Haulers Intercepted 1 | . 1 . . Recyclers Shooed . | . . . . Parts Field Recycled . | . . . . Retrieved Matter . | . . . . Parts Self-Destructed 3 | . . 3 . Prevented . | . . . . Parts Restored . | . . . . Kills | -11 -10 -10 -8 ------- Run | Yrd Mat Sub Mat Combat Hostiles Destroyed 25 | . 10 2 13 Melee 10 | . . . 10 Cannons 15 | . 10 2 3 Classes Destroyed 7 | . 4 . 3 Tunneler 1 | . 1 . . Hauler 1 | . 1 . . Recycler 1 | . . . 1 Swarmer 5 | . 3 . 2 Grunt 17 | . 7 2 8 Sentry 1 | . . . 1 Specialist 2 | . . . 2 Best Kill Streak 5 | . 4 1 5 Combat Bots Only 4 | . 4 1 4 Max Kills in Single Turn 2 | . 2 1 1 Gunslinging . | . . . . Exploded . | . . . . Melee 1 | . . . 1 Uniques/NPCs Destroyed . | . . . . Combat | -11 -10 -10 -8 -------- Run | Yrd Mat Sub Mat Hostile Shots Fired 187 | . 29 14 144 Missed 52 | . 8 7 37 Hits 135 | . 21 7 107 Projectile 135 | . 21 7 107 Critical Strikes 5 | . . . 5 Damage Taken 1844 | . 267 112 1465 Core 479 | . 37 18 424 Absorbed by Shields . | . . . . Redirected to Shielding 32 | . . . 32 Core Remaining (%) 89 | 100 . 78 . Volleys Fired 58 | . 25 10 23 Largest 2 | . 2 2 2 Hottest 63 | . 60 60 63 Shots Fired 116 | . 50 20 46 Gun . | . . . . Cannon 116 | . 50 20 46 Launcher . | . . . . Special . | . . . . Kinetic 116 | . 50 20 46 Thermal . | . . . . Explosive . | . . . . Electromagnetic . | . . . . Robot Hit Streak 7 | . 7 7 5 Robot Miss Streak 6 | . 2 3 6 Penetration Max . | . . . . Secondary Targets . | . . . . Shots Hit Robots 97 | . 29 10 58 Core Hits 34 | . 14 3 17 Critical Kills . | . . . . Critical Parts Destroyed . | . . . . Critical Strikes 6 | . . . 6 Sever 6 | . . . 6 Melee Attacks 46 | . . . 46 Impact . | . . . . Slashing 46 | . . . 46 Piercing . | . . . . Sneak Attacks 2 | . . . 2 Combat Hostiles . | . . . . Follow-up Attacks 5 | . . . 5 Damage Inflicted 2308 | . 534 179 1595 Guns . | . . . . Cannons 1156 | . 534 179 443 Explosions . | . . . . Melee 1152 | . . . 1152 Ramming . | . . . . Kinetic 1156 | . 534 179 443 Thermal . | . . . . Explosive . | . . . . Electromagnetic . | . . . . Impact . | . . . . Slashing 1152 | . . . 1152 Piercing . | . . . . Highest Corruption . | . . . . Average Corruption . | . . . . Corruption Purged . | . . . . Corruption Blocked . | . . . . Overload Shots . | . . . . Overflow Damage 79 | . 8 . 71 Projectiles 10 | . 8 . 2 Explosions . | . . . . Melee 69 | . . . 69 Knockbacks 22 | . 9 1 12 Impact . | . . . . Kinetic 20 | . 8 1 11 Secondary 2 | . 1 . 1 Self-Inflicted Damage . | . . . . Shots . | . . . . Rammed . | . . . . Targets Rammed . | . . . . Kicked . | . . . . Crushed . | . . . . Highest Temperature 279 | . 69 . 279 Average Temperature 95 | . 30 . 136 Received Heat Transfer 789 | . 141 63 585 Siege Activations . | . . . . Martial Activations . | . . . . Shielding Activations . | . . . . Robots Disrupted . | . . . . Combat Hostiles . | . . . . Robots Corrupted . | . . . . Combat Hostiles . | . . . . Parts Fried . | . . . . Impact Corruptions . | . . . . Robots Melted . | . . . . Combat Hostiles . | . . . . Parts Melted . | . . . . Heat Transferred . | . . . . Parts Sabotaged . | . . . . Parts Stolen . | . . . . Parts Stripped . | . . . . Power Chain Reactions . | . . . . Alert | -11 -10 -10 -8 ------- Run | Yrd Mat Sub Mat Maximum Alert Level . | . . . . Low Security (%) 100 | 100 100 . 100 Level 1 . | . . . . Level 2 . | . . . . Level 3 . | . . . . Level 4 . | . . . . Level 5 . | . . . . High Security . | . . . . Max Security . | . . . . Peak Influence 191 | . 191 . 157 Initial 5 | . . . 5 Average 72 | . 93 . 57 Influence Increases 724 | . 351 50 323 Destroy 0b10 Robot/C 500 | . 200 40 260 Destroy 0b10 Robot/NC 15 | . 10 . 5 Destroy Leader 112 | . 52 10 50 Successful Hack 17 | . 12 . 5 Select Force Hacks 30 | . 30 . . Disable Machine 30 | . 30 . . Destroy Structure 5 | . 2 . 3 Lose Combat Pursuer 15 | . 15 . . Influence Decreases 595 | . 216 175 204 Entered New Map 71 | . . 66 5 Time Decay 454 | . 206 109 139 Lost Part 70 | . 10 . 60 Squads Dispatched 5 | . 2 . 3 Investigation 1 | . 1 . . Extermination . | . . . . Reinforcement 4 | . 1 . 3 Assault . | . . . . Garrison . | . . . . Intercept . | . . . . Searches Triggered . | . . . . Construction Impeded . | . . . . Haulers Reinforced . | . . . . Active Scanning Responses . | . . . . Cargo Convoy Interrupts . | . . . . Stealth | -11 -10 -10 -8 --------- Run | Yrd Mat Sub Mat Distress Signals 1 | . 1 . . Communications Jammed . | . . . . Distress Signals . | . . . . Times Spotted 39 | . 18 2 19 Peak Tracking Total 7 | . 5 2 7 Tactical Retreats 1 | . 1 . . Traps | -11 -10 -10 -8 ------- Run | Yrd Mat Sub Mat Traps Triggered 2 | . 2 . . Indirectly . | . . . . Trap Hack Attempts . | . . . . Triggered . | . . . . Disarmed . | . . . . Reprogrammed . | . . . . Reused . | . . . . Traps Extracted . | . . . . Installed . | . . . . Triggered . | . . . . Machines | -11 -10 -10 -8 ---------- Run | Yrd Mat Sub Mat Machines Disabled 2 | . 2 . . Max in Single Turn 1 | . 1 . . Machines Repaired . | . . . . Machines Dismantled . | . . . . Machines Sabotaged . | . . . . Overloaded Fab Kills . | . . . . Hacking | -11 -10 -10 -8 --------- Run | Yrd Mat Sub Mat Machines Accessed 5 | . 4 . 1 Terminals 4 | . 3 . 1 Fabricators . | . . . . Repair Stations . | . . . . Recycling Units 1 | . 1 . . Scanalyzers . | . . . . Garrison Access . | . . . . Total Hacks 9 | . 6 . 3 Successful 4 | . 3 . 1 Failed 5 | . 3 . 2 Catastrophic 2 | . 2 . . Database Lockouts . | . . . . Manual 9 | . 6 . 3 Terminals 8 | . 5 . 3 Fabricators . | . . . . Repair Stations . | . . . . Recycling Units 1 | . 1 . . Scanalyzers . | . . . . Garrison Access . | . . . . Terminal Hacks 1 | . 1 . . Recycling Unit Index 1 | . 1 . . Fabricator Hacks . | . . . . Repair Station Hacks . | . . . . Recycling Unit Hacks . | . . . . Scanalyzer . | . . . . Garrison Access Hacks . | . . . . Unauthorized Hacks 3 | . 2 . 1 Terminals 2 | . 1 . 1 Botnet 2 | . 1 . 1 Fabricators . | . . . . Repair Stations . | . . . . Recycling Units 1 | . 1 . . Tunnel 1 | . 1 . . Scanalyzers . | . . . . Garrison Access . | . . . . Data Cores Recovered . | . . . . Used . | . . . . Hacking Detections 4 | . 3 . 1 Full Trace Events . | . . . . Feedback Events . | . . . . Feedback Blocked . | . . . . Robot Schematics Acquired . | . . . . Robots Built . | . . . . Authchips . | . . . . Time . | . . . . Total Robot Build Rating . | . . . . Part Schematics Acquired . | . . . . Parts Built . | . . . . Authchips . | . . . . Time . | . . . . Total Part Build Rating . | . . . . Part Studies Acquired . | . . . . Parts Repaired . | . . . . Time . | . . . . Parts Recycled . | . . . . Recycled Matter . | . . . . Retrieved Matter . | . . . . Retrieved Components . | . . . . Parts Scanalyzed . | . . . . Part Schematics Acquired . | . . . . Parts Damaged . | . . . . Bothacking | -11 -10 -10 -8 ------------ Run | Yrd Mat Sub Mat Used RIF Installer . | . . . . Robots Hacked . | . . . . Non-combat . | . . . . Combat . | . . . . Robot Hacks Applied . | . . . . Relay Couplers Released . | . . . . Fabnet Peak Effective % . | . . . . Robots Rewired . | . . . . Allies Hacked . | . . . . Hacks Repelled . | . . . . Allies | -11 -10 -10 -8 -------- Run | Yrd Mat Sub Mat Total Allies . | . . . . Largest Group . | . . . . Highest-Rated Group . | . . . . Highest-Rated Ally . | . . . . Total Orders . | . . . . Ally Attacks . | . . . . Total Damage . | . . . . Kills . | . . . . Allies Corrupted . | . . . . Allies Melted . | . . . . Intel | -11 -10 -10 -8 ------- Run | Yrd Mat Sub Mat Active Infowar (turns) . | . . . . Robot Analysis Total . | . . . . Derelict Logs Recovered . | . . . . Drone Launches . | . . . . Drone Recoveries . | . . . . Exploration | -11 -10 -10 -8 ------------- Run | Yrd Mat Sub Mat Turns Passed 1256 | 77 527 236 416 Spaces Moved 654 | 43 316 185 110 Core 7 | 4 . . 3 Treads 114 | 39 75 . . Legs 5 | . . . 5 Wheels 528 | . 241 185 102 Hover . | . . . . Flight . | . . . . Fastest Speed 50 | 50 110 110 110 Average Speed 131 | 149 130 110 165 Slowest Speed 900 | 160 160 110 900 Overloaded Moves . | . . . . Propulsion Burnouts . | . . . . Robots Hopped . | . . . . Potential Cave-ins . | . . . . Cave-ins Triggered . | . . . . Exploration Rate (%) 18 | 4 52 11 8 Regions Visited 3 Branch Regions 1 Pre-discovered Areas 1 | . 1 . . Known Exits Taken . | . . . . Unknown Exits Taken 3 | 1 1 1 . Scrap Searched . | . . . . Spaces Dug . | . . . . Terrain Destroyed 3 | . . . 3 Melee . | . . . . Projectile 3 | . . . 3 AOE . | . . . . Terrain Rammed . | . . . . Walls Destroyed . | . . . . Machines Disabled . | . . . . Actions | -11 -10 -10 -8 --------- Run | Yrd Mat Sub Mat Total 861 | 52 379 197 233 Wait 65 | . 22 . 43 Move 651 | 42 315 184 110 Hop . | . . . . Pick Up 17 | 3 8 3 3 Fast Attach 19 | 6 4 . 9 Attach 9 | . 4 . 5 Detach 1 | . . . 1 Swap 1 | 1 . . . Drop 1 | . 1 . . Fire 58 | . 25 10 23 Melee 39 | . . . 39 Ram . | . . . . Kick . | . . . . Crush . | . . . . Escape Stasis . | . . . . Rewire . | . . . . Trap . | . . . . Miscellaneous . | . . . . Route ------- -11/Scrapyard -10/Materials (discovered 3 exits: [*Mat] / [*Min] / [*Sub]) -10/Subcaves -8/Materials History --------- Turn | Location | Event 8 | -11/Scrapyard | Discovered new exit (range 15) 78 | -11/Scrapyard | Entered Materials 314 | -10/Materials | Build established: Mutant 367 | -10/Materials | Discovered new exit (range 16) 429 | -10/Materials | Discovered new exit (range 15) 592 | -10/Materials | Discovered new exit (range 10) 605 | -10/Materials | Entered Subcaves 606 | -10/Subcaves | Shifting Twisted Machinery released Hvy. Riot Gun 608 | -10/Subcaves | Shifting Twisted Machinery released Mak. Light Armor Plating 617 | -10/Subcaves | Discovered new exit (range 8) 626 | -10/Subcaves | Shifting Twisted Machinery released Battle Cannon 729 | -10/Subcaves | A swath of the cavern ceiling suddenly collapsed 841 | -10/Subcaves | Entered Materials 841 | -8/Materials | Evolved 4 slots: Propulsion x2, Utility x2 1011 | -8/Materials | Lost 4 parts (1p1n2w) 1167 | -8/Materials | Core integrity fell below 50% 1257 | -8/Materials | Self-destructed Last Messages --------------- 01203_ Acquired 21 matter. 01205_ Acquired Lgt. Treads. 01206_ K-01 Serf collects debris. 01206_ Sneak attack on K-01 Serf. 01206_ Destroyed Med. Matter Pod. 01206_ Destroyed Lgt. Ion Engine. 01211_ Acquired Katana. 01218_ Acquired Imp. Heat Sink. 01222_ Acquired Imp. Light Armor Plating. 01231_ Acquired 30 matter. 01237_ Acquired Aluminum Leg. 01240_ Acquired Lgt. Ion Engine. 01243_ Acquired 20 matter. 01254_ Knocked back. 01256_ TF Node disabled. 01256_ Imp. Sensor Array tumbles out of TF Node. 01256_ Imp. Signal Interpreter tumbles out of TF Node. 01257_ M-13 Machinist fits Backup Propulsion I on O-16 Technician. Map ----- +----------------------------------------------------+ | ???????????????????????????????????????? | | ???????????????????????????????????????? | | ?????????????##########????????????????? | | ??############ #????????????????? | | ??# ## #????????????????? | | ??# "" ## ##???????????????? | | ??# T" ## ##???????????????? | | ??# "" ## ###??????????????? | | ??# """ ## = # #??????????????? | | ??# """ ## #????????????????? | | ??# """ ## #????????????????? | | ??# ## #????????????????? | | ??#######+########+########## ???????? | | ?????# #??????? | | ?????# #??????? | | ?????# = #??????? | | ?????############*[ ######### ???????? | | ??????###########==m#??????????????????? | | ??????# // #![%#??????????????????? | | ??????# //!%+[%[+??????????????????? | | ??????# / [[#%*!#??????????????????? | | ??????# !# =%#??????????????????? | | ???############## %!##?????????????????? | | ??? ! ! # #######???????????? | | ????[ # ! ???????? | | ????????"" """ @ ! H ??????? | | ????????"" """ # ???????? | | ????????"" """ # ###+### ???????? | | ???????? ?## ##????????#????????? | | ????????####u#??# #??????????????????? | | ???????????# ???# #??????????????????? | | ???????????#????# #??????????????????? | | ????????????????? #??????????????????? | | ????????????????? #??????????????????? | | ????????????????? #??????????????????? | | ????????????????? #??????????????????? | | ????????????????? ??????????????????? | | ????????????????? ??????????????????? | | ????????????????? ??????????????????? | | ?????????????????? ????????????????????? | | ???????????????????????????????????????? | | ???????????????????????????????????????? | | ???????????????????????????????????????? | | ???????????????????????????????????????? | | ???????????????????????????????????????? | | ???????????????????????????????????????? | | ???????????????????????????????????????? | | ???????????????????????????????????????? | | ???????????????????????????????????????? | | ???????????????????????????????????????? | +----------------------------------------------------+ Best States ------------- Heat Dissipation 45 Energy Generation 10 Energy Capacity 250 Matter Stores 300 Matter Capacity 300 Sight Range 16 Terrain Scan Density 10 Armor Coverage 150 Propulsion Shielding 33 Evasion (%) 40 Recoil Reduction 2 Item Schematics ----------------- None Robot Schematics ------------------ None Fabricated ------------ Nothing Repaired ---------- Nothing Studied --------- None Alien Tech Used ----------------- None Achievements -------------- None Challenges ------------ None Game ------ Seed PrecisionMakeshiftMonowheel Manual? 0 Play Time 00:10:43 Cumulative 378.2 hours Start 2026.09.11 @ 05:32:22 End 2026.09.11 @ 05:39:51 Sessions 1 Manual Loads 0 Difficulty Rogue Special Mode None Game No. 343 Rogue 289 Adventurer 54 Explorer 0 Win Type - Total 21 Types 14/1/1/1/1/0/1/1/0/1 Lore% 83 Gallery% 70 Achievement% 69 Wizard Run 0 Options --------- Layout 1 ASCII 0 Keyboard 0 Movement Mouse Keybinds 1 Fullscreen 2 Font 32/Tamsyn Map View 50x35 Zoom Use 0% Tactical HUD 1 Map Filters NONE Filters NONE Steam 1 RUN: 90bc4a95-3155-45f6-a397-2aa788af0263